bitfinex/quotes_BTCUSD_20230111
["timestamp","ask_amount","ask_price","bid_price","bid_amount"]
[1673455178446,0.1403063,17364.0,17363.0,3.70608681]
[1673455179197,0.99481912,17364.0,17363.0,2.00363898]
[1673455179451,2.84481879,17364.0,17363.0,2.00363898]
[1673455179721,2.84481879,17364.0,17363.0,0.00547112]
[1673455179722,3.01730401,17364.0,17363.0,0.00547112]
[1673455180483,3.01730401,17364.0,17363.0,0.002]
[1673455181215,3.72630401,17364.0,17363.0,0.002]
[1673455183182,3.71630401,17364.0,17363.0,0.002]
[1673455184844,3.54381879,17364.0,17361.0,4.0019437]
[1673455185088,0.4655,17363.0,17361.0,4.0019437]
[1673455185343,1.08966269,17363.0,17361.0,4.0019437]
[1673455185599,1.08966269,17363.0,17361.0,4.25955827]
[1673455185850,0.1655,17363.0,17362.0,0.52287649]
[1673455186092,0.1655,17363.0,17362.0,1.09892824]
[1673455186346,0.1655,17363.0,17362.0,1.27067129]
[1673455186583,1.45225136,17364.0,17362.0,1.27067129]
[1673455186867,0.002,17363.0,17362.0,1.27067129]
[1673455187076,1.75225136,17364.0,17362.0,1.84664129]
[1673455188316,1.75225136,17364.0,17362.0,1.86064129]
[1673455188569,1.75225136,17364.0,17362.0,1.68889824]
[1673455188830,1.75225136,17364.0,17362.0,1.68881649]
[1673455189091,0.60187035,17363.0,17362.0,1.16594]
[1673455189365,0.90187035,17363.0,17362.0,1.16594]
[1673455189867,0.90187035,17363.0,17362.0,1.15194]
[1673455190144,0.60187035,17363.0,17362.0,1.16594]
[1673455190424,1.59080506,17364.0,17362.0,1.16594]
[1673455190706,1.1013063,17364.0,17362.0,1.16594]
[1673455191503,1.1013063,17364.0,17362.0,1.33768305]
[1673455191766,1.79622693,17364.0,17362.0,1.32368305]
[1673455191999,1.79622693,17364.0,17362.0,1.16594]
[1673455192249,1.79622693,17364.0,17362.0,1.33768305]
[1673455192739,1.79622693,17364.0,17362.0,1.33783858]
[1673455192953,1.79622693,17364.0,17362.0,1.16609553]
[1673455193200,2.28582217,17364.0,17362.0,1.16609553]
[1673455193436,2.28582217,17364.0,17362.0,1.16594]
[1673455193911,2.28582217,17364.0,17362.0,1.16609553]
[1673455194723,0.53167441,17363.0,17362.0,0.58997]
[1673455194979,1.03907341,17363.0,17362.0,0.014]
[1673455195222,0.83167441,17363.0,17362.0,0.014]
[1673455195686,1.52968851,17363.0,17362.0,0.014]
[1673455195940,1.32228951,17363.0,17361.0,3.18033844]
[1673455196444,1.32228951,17363.0,17361.0,3.18049398]
[1673455197207,0.83367441,17363.0,17361.0,3.26549398]
[1673455198742,1.32428951,17363.0,17361.0,3.26549398]
[1673455199001,0.53367441,17363.0,17361.0,3.26549398]
[1673455199258,0.53367441,17363.0,17361.0,4.01324003]
[1673455200540,0.70156373,17362.0,17361.0,2.68936444]
[1673455200787,0.90896273,17362.0,17361.0,2.68943881]
[1673455201047,0.70156373,17362.0,17361.0,2.68943881]
[1673455201927,0.70156373,17362.0,17361.0,2.68753181]
[1673455202125,0.9585151,17363.0,17361.0,3.35027786]
[1673455202126,0.9565151,17363.0,17361.0,3.35027786]
[1673455202357,0.002,17362.0,17361.0,4.01128086]
[1673455203153,1.28298652,17363.0,17361.0,3.92628086]
[1673455203417,0.79237142,17363.0,17361.0,3.92628086]
[1673455204166,1.28298652,17363.0,17361.0,3.35020349]
[1673455204420,0.70534113,17362.0,17361.0,2.60245744]
[1673455204682,0.70534113,17362.0,17361.0,2.60260892]
[1673455204936,0.70534113,17362.0,17361.0,2.60245744]
[1673455205192,0.70534113,17362.0,17361.0,2.08126086]
[1673455205449,0.70534113,17362.0,17361.0,1.99626086]
[1673455205794,0.70734113,17362.0,17361.0,2.08126086]
[1673455206765,0.91474013,17362.0,17361.0,2.08126086]
[1673455207270,2.58027946,17362.0,17361.0,0.085]
[1673455207746,3.07089456,17362.0,17361.0,0.085]
[1673455207993,4.76220652,17362.0,17361.0,0.085]
[1673455208257,4.93469174,17362.0,17361.0,0.015]
[1673455208505,4.76220652,17362.0,17361.0,0.015]
[1673455209280,3.11947846,17362.0,17361.0,0.015]
[1673455210034,2.95357846,17362.0,17361.0,0.015]
[1673455211525,2.74617946,17362.0,17361.0,0.01522213]
[1673455211786,2.95357846,17362.0,17361.0,0.015]
[1673455212287,2.74617946,17362.0,17361.0,0.015]
[1673455212541,2.95357846,17362.0,17361.0,0.015]
[1673455212798,2.74617946,17362.0,17361.0,0.015]
[1673455213063,2.95357846,17362.0,17361.0,0.015]
[1673455213589,2.74617946,17362.0,17361.0,0.015]
[1673455213828,2.95357846,17362.0,17361.0,0.015]
[1673455214047,2.74617946,17362.0,17361.0,0.015]
[1673455214303,2.95357846,17362.0,17361.0,0.015]
[1673455214566,2.74617946,17362.0,17361.0,0.015]
[1673455214817,2.95357846,17362.0,17361.0,0.015]
[1673455215087,2.74617946,17362.0,17361.0,0.015]
[1673455215339,2.95357846,17362.0,17361.0,0.015]
[1673455216051,2.74617946,17362.0,17361.0,0.015]
[1673455216301,2.95357846,17362.0,17361.0,0.015]
[1673455216835,2.74617946,17362.0,17361.0,0.015]
[1673455217087,2.95357846,17362.0,17361.0,0.015]
[1673455217581,2.74617946,17362.0,17361.0,0.015]
[1673455217792,2.95357846,17362.0,17361.0,0.01522213]
[1673455218312,2.74617946,17362.0,17361.0,0.01522213]
[1673455218556,2.95357846,17362.0,17361.0,0.015]
[1673455219077,2.74617946,17362.0,17361.0,0.015]
[1673455219353,2.95357846,17362.0,17361.0,0.015]
[1673455219605,2.74617946,17362.0,17361.0,0.015]
[1673455219854,2.95357846,17362.0,17361.0,0.015]
[1673455220842,2.74617946,17362.0,17361.0,0.015]
[1673455221091,2.95357846,17362.0,17361.0,0.015]
[1673455221327,2.74617946,17362.0,17361.0,0.015]
[1673455221581,2.95357846,17362.0,17361.0,0.015]
[1673455222856,4.10567975,17362.0,17361.0,0.015]
[1673455223467,3.93977975,17362.0,17361.0,0.015]
[1673455226536,3.93977975,17362.0,17361.0,0.01642434]
[1673455226784,2.58027946,17362.0,17361.0,0.01642434]
[1673455227017,2.78767846,17362.0,17361.0,0.015]
[1673455227762,3.93977471,17362.0,17361.0,0.015]
[1673455228532,4.11225993,17362.0,17361.0,0.015]
[1673455229551,3.93977471,17362.0,17361.0,0.015]
[1673455229775,3.73237571,17362.0,17361.0,0.015]
[1673455230016,3.93977471,17362.0,17361.0,0.015]
[1673455230251,3.73237571,17362.0,17361.0,0.015]
[1673455230514,3.93977471,17362.0,17361.0,0.015]
[1673455231476,3.73237571,17362.0,17361.0,0.01528224]
[1673455231719,3.93977471,17362.0,17361.0,0.015]
[1673455232025,3.73237571,17362.0,17361.0,0.015]
[1673455232251,3.93977471,17362.0,17361.0,0.015]
[1673455232493,3.73237571,17362.0,17361.0,0.015]
[1673455232761,3.93977471,17362.0,17361.0,0.015]
[1673455233743,4.27675993,17362.0,17361.0,0.015]
[1673455233964,4.06936093,17362.0,17361.0,0.015]
[1673455234169,4.27675993,17362.0,17361.0,0.015]
[1673455234672,4.06936093,17362.0,17361.0,0.015]
[1673455234911,4.27675993,17362.0,17361.0,0.015]
[1673455236655,4.06936093,17362.0,17361.0,0.015]
[1673455236922,4.27675993,17362.0,17361.0,0.015]
[1673455237167,4.06936093,17362.0,17361.0,0.015]
[1673455237469,4.27675993,17362.0,17361.0,0.015]
[1673455238996,4.27675993,17362.0,17361.0,0.01528224]
[1673455239254,4.06936093,17362.0,17361.0,0.01528224]
[1673455239521,4.10427471,17362.0,17361.0,0.015]
[1673455240128,3.89687571,17362.0,17361.0,0.015]
[1673455240411,4.10427471,17362.0,17361.0,0.015]
[1673455240649,3.89687571,17362.0,17361.0,0.015]
[1673455240897,4.27675993,17362.0,17361.0,0.015]
[1673455241145,4.10427471,17362.0,17361.0,0.01528224]
[1673455241398,4.10427471,17362.0,17361.0,0.18674305]
[1673455241664,3.89687571,17362.0,17361.0,0.015]
[1673455241884,4.10427471,17362.0,17361.0,0.015]
[1673455242901,3.89687571,17362.0,17361.0,0.015]
[1673455243142,4.10427471,17362.0,17361.0,0.015]
[1673455243385,3.89687571,17362.0,17361.0,0.015]
[1673455243631,4.11225993,17362.0,17361.0,0.015]
[1673455243876,4.11225993,17362.0,17361.0,0.18674305]
[1673455243877,3.90486093,17362.0,17361.0,0.18674305]
[1673455244130,4.11225993,17362.0,17361.0,0.18674305]
[1673455245137,3.02703458,17362.0,17361.0,0.18691497]
[1673455245395,1.15409625,17362.0,17361.0,0.87253745]
[1673455245911,1.36149525,17362.0,17361.0,0.87253745]
[1673455246408,1.36149525,17362.0,17361.0,0.18674305]
[1673455246656,1.53398047,17362.0,17361.0,0.18674305]
[1673455246916,1.53398047,17362.0,17361.0,0.015]
[1673455247167,1.53398047,17362.0,17361.0,0.18674305]
[1673455247417,1.32658147,17362.0,17361.0,0.015]
[1673455247667,1.32658147,17362.0,17361.0,0.18674305]
[1673455247917,1.83398047,17362.0,17361.0,0.015]
[1673455249144,1.53398047,17362.0,17361.0,0.015]
[1673455250195,1.36149525,17362.0,17361.0,0.18674305]
[1673455250674,1.53398047,17362.0,17361.0,0.18674305]
[1673455250923,1.53398047,17362.0,17361.0,0.015]
[1673455253135,1.53398047,17362.0,17361.0,0.01662987]
[1673455253387,1.53398047,17362.0,17361.0,0.18837292]
[1673455253388,1.36149525,17362.0,17361.0,0.18837292]
[1673455253636,1.53398047,17362.0,17361.0,0.18837292]
[1673455253856,1.15409625,17362.0,17361.0,0.18837292]
[1673455255916,1.15409625,17362.0,17361.0,0.18674305]
[1673455256410,1.36149525,17362.0,17361.0,0.18674305]
[1673455256947,1.15409625,17362.0,17361.0,0.18674305]
[1673455257454,0.002,17362.0,17361.0,0.18837292]
[1673455257712,0.00190609,17362.0,17361.0,2.56248976]
[1673455257970,3.82675743,17364.0,17361.0,2.56248976]
[1673455257971,3.66085743,17364.0,17362.0,9.391e-05]
[1673455258225,3.66085743,17364.0,17362.0,0.17221778]
[1673455258477,3.40212206,17364.0,17362.0,0.17221778]
[1673455258757,3.66085743,17364.0,17362.0,0.71794322]
[1673455259541,3.42512206,17364.0,17362.0,1.29691022]
[1673455260049,3.91398846,17364.0,17362.0,1.29691022]
[1673455261075,3.91398846,17364.0,17362.0,1.29715502]
[1673455261587,0.207399,17363.0,17362.0,1.29715502]
[1673455261857,3.42512206,17364.0,17362.0,1.87312502]
[1673455262120,3.91398846,17364.0,17362.0,1.87312502]
[1673455262380,2.86972985,17364.0,17362.0,1.87312502]
[1673455262640,2.69724463,17364.0,17362.0,2.13073959]
[1673455263200,0.8243063,17364.0,17362.0,1.87312502]
[1673455263447,0.8243063,17364.0,17362.0,2.13073959]
[1673455263694,0.207399,17363.0,17362.0,2.13073959]
[1673455263969,1.1243063,17364.0,17362.0,2.13073959]
[1673455264225,1.1243063,17364.0,17362.0,1.87312502]
[1673455264490,0.1153063,17364.0,17362.0,1.87312502]
[1673455264748,0.1153063,17364.0,17362.0,2.13073959]
[1673455266521,0.1153063,17364.0,17362.0,1.87312502]
[1673455267546,0.69026051,17364.0,17362.0,1.87288022]
[1673455267810,0.207399,17363.0,17362.0,1.70075635]
[1673455268103,1.47912691,17364.0,17362.0,1.7009049]
[1673455268353,0.99026051,17364.0,17362.0,0.5489679]
[1673455268616,1.47912691,17364.0,17362.0,1.70075635]
[1673455269673,0.99026051,17364.0,17362.0,1.7008552]
[1673455271324,0.69026051,17364.0,17362.0,1.7008552]
[1673455271846,0.69026051,17364.0,17362.0,1.87297907]
[1673455272871,0.69026051,17364.0,17362.0,1.87288516]
[1673455273134,0.69026051,17364.0,17362.0,1.70076129]
[1673455275470,1.17912691,17364.0,17362.0,1.70066244]
[1673455276008,0.207399,17363.0,17362.0,1.70066244]
[1673455276236,1.47912691,17364.0,17362.0,1.70066244]
[1673455277255,1.45612691,17364.0,17362.0,1.69766244]
[1673455277511,0.0923063,17364.0,17363.0,0.00014604]
[1673455278052,0.1153063,17364.0,17363.0,0.57608304]
[1673455278305,0.1153063,17364.0,17363.0,1.09553024]
[1673455278851,0.2997053,17364.0,17363.0,1.09553024]
[1673455279070,0.3957053,17364.0,17363.0,1.10353024]
[1673455279339,0.39561403,17364.0,17363.0,1.10353024]
[1673455279847,0.39561403,17364.0,17363.0,1.1033842]
[1673455280098,0.39561403,17364.0,17363.0,0.583937]
[1673455281099,0.18821503,17364.0,17363.0,0.583937]
[1673455281847,0.18821503,17364.0,17363.0,1.159874]
[1673455282417,0.18321503,17364.0,17363.0,1.159874]
[1673455283372,0.18321503,17364.0,17363.0,1.16002004]
[1673455283642,0.18321503,17364.0,17363.0,1.82079342]
[1673455284622,0.80180523,17364.0,17363.0,2.12079342]
[1673455284880,0.80180523,17364.0,17363.0,1.16002004]
[1673455285632,0.80180523,17364.0,17363.0,2.55598022]
[1673455285633,0.18321503,17364.0,17363.0,2.55598022]
[1673455285899,0.18321503,17364.0,17363.0,2.72810409]
[1673455286200,3.12969897,17366.0,17364.0,0.61678497]
[1673455286431,3.12969897,17366.0,17365.0,0.57601703]
[1673455286648,1.88949897,17366.0,17365.0,0.57601703]
[1673455286914,0.85377827,17366.0,17365.0,0.57601703]
[1673455287181,0.85377827,17366.0,17365.0,1.15188803]
[1673455287423,0.85377827,17366.0,17365.0,3.14814889]
[1673455287686,0.85377827,17366.0,17365.0,2.57227789]
[1673455287929,0.85777827,17366.0,17365.0,2.57827789]
[1673455289459,0.85777827,17366.0,17365.0,2.57813186]
[1673455290209,0.5409933,17366.0,17365.0,2.57813186]
[1673455290459,0.004,17366.0,17365.0,2.57813186]
[1673455290713,0.004,17366.0,17365.0,2.57823306]
[1673455295776,0.004,17366.0,17365.0,3.15410406]
[1673455297532,0.08777102,17366.0,17365.0,3.15410406]
[1673455298040,0.08777102,17366.0,17365.0,2.57823306]
[1673455299539,0.08777102,17366.0,17365.0,3.67056446]
[1673455299789,0.08777102,17366.0,17365.0,4.41855933]
[1673455300044,0.08777102,17366.0,17365.0,3.84268833]
[1673455300295,0.08777102,17366.0,17365.0,3.67056446]
[1673455300550,0.08777102,17366.0,17365.0,4.24643546]
[1673455300824,0.08777102,17366.0,17365.0,3.67056446]
[1673455301599,0.60146341,17366.0,17365.0,3.09459226]
[1673455301826,0.60146341,17366.0,17365.0,2.00226086]
[1673455302573,0.60146341,17366.0,17365.0,0.006]
[1673455303071,0.60146341,17366.0,17365.0,0.00641186]
[1673455303574,0.76736341,17366.0,17365.0,0.00641186]
[1673455304365,0.25367102,17366.0,17365.0,0.58228286]
[1673455306963,0.25367102,17366.0,17365.0,1.15815386]
[1673455309514,0.25367102,17366.0,17365.0,1.72113302]
[1673455310472,0.01581467,17367.0,17365.0,1.72113302]
[1673455310735,0.1655,17366.0,17365.0,1.15815386]
[1673455310983,0.1659,17366.0,17365.0,1.67388804]
[1673455311508,0.1659,17366.0,17365.0,1.15815386]
[1673455311776,0.1659,17366.0,17365.0,1.15215386]
[1673455311999,0.1659,17366.0,17365.0,1.15715386]
[1673455312287,0.1659,17366.0,17365.0,1.15215386]
[1673455312550,0.1659,17366.0,17365.0,1.15715386]
[1673455313046,0.1659,17366.0,17365.0,1.72108683]
[1673455313552,0.18171467,17367.0,17365.0,1.72108683]
[1673455314320,1.08876997,17367.0,17365.0,1.72108683]
[1673455314586,1.56938131,17367.0,17365.0,1.72067497]
[1673455314830,1.56938131,17367.0,17365.0,1.71567497]
[1673455315072,1.56938131,17367.0,17365.0,1.72167497]
[1673455316586,1.74186653,17367.0,17365.0,1.72167497]
[1673455317355,1.74186653,17367.0,17366.0,0.00050798]
[1673455317613,2.4130642,17367.0,17365.0,1.72164697]
[1673455317867,1.74086653,17367.0,17365.0,1.72162797]
[1673455318371,1.74086653,17367.0,17365.0,1.71562797]
[1673455318622,1.74086653,17367.0,17366.0,0.009]
[1673455318885,2.41207493,17367.0,17365.0,1.71562697]
[1673455319139,1.74086653,17367.0,17365.0,1.72162697]
[1673455320737,1.9996019,17367.0,17365.0,1.157694]
[1673455320976,1.96384458,17366.0,17365.0,0.006]
[1673455321229,3.20009129,17366.0,17365.0,0.006]
[1673455321528,3.20009129,17366.0,17365.0,0.0044]
[1673455321529,3.37268798,17366.0,17365.0,0.0044]
[1673455321783,3.37268798,17366.0,17363.0,3.27321933]
[1673455322046,0.3313,17364.0,17363.0,3.27321933]
[1673455322302,0.6313,17364.0,17363.0,3.27321933]
[1673455322556,0.3313,17364.0,17363.0,3.27321933]
[1673455322821,0.91193758,17365.0,17363.0,3.27321933]
[1673455322822,0.81900221,17365.0,17363.0,3.27321933]
[1673455323077,0.1658,17365.0,17364.0,0.66958346]
[1673455323841,0.1658,17365.0,17364.0,1.24548746]
[1673455324862,0.1678,17365.0,17364.0,1.24599549]
[1673455325116,0.1679,17365.0,17364.0,1.82189949]
[1673455325624,0.002,17365.0,17364.0,1.82189949]
[1673455325877,0.002,17365.0,17364.0,2.25163793]
[1673455326139,0.002,17365.0,17364.0,3.12754193]
[1673455326401,0.002,17365.0,17364.0,3.82130113]
[1673455326653,1.30320652,17366.0,17364.0,2.82754193]
[1673455326901,1.30320652,17366.0,17364.0,2.56992736]
[1673455327141,1.30320652,17366.0,17364.0,2.82754193]
[1673455327639,1.30320652,17366.0,17364.0,2.85154193]
[1673455327891,1.30320652,17366.0,17364.0,2.82754193]
[1673455328150,1.30320652,17366.0,17364.0,2.85154193]
[1673455329135,1.30320652,17366.0,17364.0,2.59392736]
[1673455330151,1.30320652,17366.0,17364.0,2.85154193]
[1673455331407,1.30320652,17366.0,17364.0,2.8514319]
[1673455334462,1.30320652,17366.0,17365.0,0.58313683]
[1673455334700,0.6873,17366.0,17365.0,1.73487883]
[1673455334989,0.6873,17366.0,17365.0,1.9070027]
[1673455335777,0.6893,17366.0,17365.0,1.73487883]
[1673455336287,0.6893,17366.0,17365.0,1.9070027]
[1673455336549,0.6893,17366.0,17365.0,1.73487883]
[1673455336804,0.6893,17366.0,17365.0,1.151742]
[1673455337415,0.6893,17366.0,17365.0,1.15225]
[1673455337926,0.6893,17366.0,17365.0,1.32437387]
[1673455338211,0.6893,17366.0,17365.0,1.15225]
[1673455338466,0.6893,17366.0,17365.0,1.32437387]
[1673455340041,0.6893,17366.0,17365.0,1.15225]
[1673455341040,1.41749234,17366.0,17365.0,1.151742]
[1673455344257,1.41749234,17366.0,17365.0,1.32386587]
[1673455344792,1.41749234,17366.0,17365.0,1.32437387]
[1673455345339,1.41749234,17366.0,17365.0,1.32386587]
[1673455345595,1.41749234,17366.0,17365.0,1.151742]
[1673455347169,0.002,17366.0,17365.0,1.151742]
[1673455347403,0.01581467,17367.0,17366.0,0.90497912]
[1673455347728,0.01581467,17367.0,17366.0,2.05665312]
[1673455347998,0.6761853,17367.0,17366.0,2.05665312]
[1673455348254,2.12795954,17367.0,17366.0,1.48081612]
[1673455348508,2.30055041,17367.0,17366.0,1.48681612]
[1673455352214,2.00055041,17367.0,17366.0,1.48681612]
[1673455352991,1.82795954,17367.0,17366.0,1.48681612]
[1673455353716,1.99325954,17367.0,17366.0,2.06265312]
[1673455354188,1.99325954,17367.0,17366.0,1.48681612]
[1673455356707,1.99324442,17367.0,17366.0,1.48681612]
[1673455360416,1.99324442,17367.0,17366.0,1.46681612]
[1673455360672,2.29324442,17367.0,17366.0,1.46681612]
[1673455362605,2.46583529,17367.0,17366.0,1.46681612]
[1673455363416,2.72457066,17367.0,17366.0,0.89097912]
[1673455363653,2.55927066,17367.0,17366.0,0.89097912]
[1673455364682,2.90435257,17367.0,17366.0,0.89097912]
[1673455364927,2.25927066,17367.0,17366.0,0.89097912]
[1673455365920,2.25927066,17367.0,17366.0,0.006]
[1673455366167,2.00053529,17367.0,17366.0,0.006]
[1673455366422,2.00053529,17367.0,17366.0,0.581837]
[1673455367962,1.40053529,17367.0,17366.0,0.581837]
[1673455371226,1.40053529,17367.0,17366.0,1.157674]
[1673455371446,1.22794442,17367.0,17366.0,1.32979787]
[1673455371699,1.40053529,17367.0,17366.0,1.157674]
[1673455372201,1.22794442,17367.0,17366.0,1.32979787]
[1673455374950,1.22794442,17367.0,17366.0,1.157674]
[1673455375205,1.40053529,17367.0,17366.0,1.157674]
[1673455375684,1.70053529,17367.0,17366.0,0.581837]
[1673455376190,1.95927066,17367.0,17366.0,0.581837]
[1673455376694,1.95927066,17367.0,17366.0,0.006]
[1673455376943,2.4433122,17367.0,17366.0,0.006]
[1673455377197,1.95927066,17367.0,17366.0,0.006]
[1673455378733,1.95927066,17367.0,17366.0,0.00650798]
[1673455380284,1.95936485,17367.0,17366.0,0.00650798]
[1673455380557,2.1317617,17367.0,17366.0,0.00650798]
[1673455380972,2.30444757,17367.0,17366.0,0.00650798]
[1673455381232,1.65936573,17367.0,17366.0,0.00650798]
[1673455382012,2.60489986,17367.0,17366.0,0.006]
[1673455382283,3.68316426,17367.0,17366.0,0.006]
[1673455382544,3.81872845,17367.0,17366.0,0.006]
[1673455382799,3.47346141,17367.0,17366.0,0.006]
[1673455384105,3.81864198,17367.0,17366.0,0.006]
[1673455386365,3.68326292,17367.0,17366.0,0.006]
[1673455386637,3.83160945,17367.0,17366.0,0.006]
[1673455387143,3.83160955,17367.0,17366.0,0.006]
[1673455387421,3.51029152,17367.0,17366.0,0.006]
[1673455388955,4.98320536,17367.0,17366.0,0.006]
[1673455389198,4.66187589,17367.0,17366.0,0.006]
[1673455390640,4.66307589,17367.0,17366.0,0.006]
[1673455391421,4.83607092,17367.0,17366.0,0.006]
[1673455391676,4.83607092,17367.0,17366.0,0.005928]
[1673455392192,4.66303375,17367.0,17366.0,0.005928]
[1673455393952,4.33243375,17367.0,17366.0,0.005928]
[1673455394208,4.66243375,17367.0,17366.0,0.005928]
[1673455398943,4.65743375,17367.0,17366.0,0.005928]
[1673455402967,4.08162975,17367.0,17366.0,0.005928]
[1673455408987,3.91662975,17367.0,17366.0,0.005928]
[1673455410536,4.08966692,17367.0,17366.0,0.005928]
[1673455410785,4.79940993,17367.0,17366.0,0.005928]
[1673455411561,4.61922936,17367.0,17366.0,0.005928]
[1673455413917,4.18743583,17367.0,17366.0,0.005928]
[1673455415745,4.61899809,17367.0,17366.0,0.005928]
[1673455416394,4.18743583,17367.0,17366.0,0.005928]
[1673455421171,4.18743583,17367.0,17366.0,0.00581861]
[1673455423672,4.02243583,17367.0,17366.0,0.00581861]
[1673455425633,3.44663183,17367.0,17366.0,0.00581861]
[1673455426318,4.02243583,17367.0,17366.0,0.00581861]
[1673455428071,3.44663183,17367.0,17366.0,0.00581861]
[1673455428394,3.87829401,17367.0,17366.0,0.00581861]
[1673455431730,3.96111214,17367.0,17366.0,0.00581861]
[1673455432236,3.96099608,17367.0,17366.0,0.00581861]
[1673455433991,3.5293339,17367.0,17366.0,0.00581861]
[1673455436282,3.55803368,17367.0,17366.0,0.00581861]
[1673455438095,3.98971023,17367.0,17366.0,0.00581861]
[1673455440116,3.46404974,17367.0,17366.0,0.00581861]
[1673455440373,4.16592839,17367.0,17366.0,0.00581861]
[1673455443674,4.33172839,17367.0,17366.0,0.00581861]
[1673455445344,4.76345886,17367.0,17366.0,0.00581861]
[1673455449219,3.41156238,17367.0,17366.0,0.7079097]
[1673455449467,2.83575325,17367.0,17366.0,0.7079097]
[1673455449727,2.53575325,17367.0,17366.0,0.7079097]
[1673455450487,2.36300211,17367.0,17366.0,0.7079097]
[1673455452402,2.1039739,17367.0,17366.0,0.7079097]
[1673455452679,1.40209525,17367.0,17366.0,0.7079097]
[1673455452928,1.22946119,17367.0,17366.0,1.2837467]
[1673455453436,0.08281813,17367.0,17366.0,1.2837467]
[1673455453935,1.23458291,17367.0,17366.0,1.2837467]
[1673455454175,1.40721697,17367.0,17366.0,1.2837467]
[1673455454425,1.40721697,17367.0,17366.0,1.28392941]
[1673455454681,0.08281813,17367.0,17366.0,1.28392941]
[1673455456670,0.08281813,17367.0,17366.0,1.2837467]
[1673455457419,0.08281813,17367.0,17366.0,1.28392941]
[1673455458955,0.08281813,17367.0,17366.0,0.58165561]
[1673455459212,0.08281813,17367.0,17366.0,0.00581861]
[1673455459213,2.23532191,17367.0,17366.0,0.00581861]
[1673455459463,0.6108795,17367.0,17366.0,0.00581861]
[1673455459723,0.6108795,17367.0,17366.0,0.58165561]
[1673455463055,1.76268279,17367.0,17366.0,0.00581861]
[1673455463304,1.93531685,17367.0,17366.0,0.00581861]
[1673455463557,1.76268279,17367.0,17366.0,0.00581861]
[1673455463775,1.93531685,17367.0,17366.0,0.00581861]
[1673455464306,1.76268279,17367.0,17366.0,0.00581861]
[1673455464827,1.7626826,17367.0,17366.0,0.00581861]
[1673455465059,0.6108795,17367.0,17366.0,0.00581861]
[1673455465274,1.76268512,17367.0,17366.0,0.00581861]
[1673455465517,0.6108795,17367.0,17366.0,0.00581861]
[1673455466265,1.76268273,17367.0,17366.0,0.00581861]
[1673455466522,1.93531679,17367.0,17366.0,0.00581861]
[1673455466789,1.76268273,17367.0,17366.0,0.00581861]
[1673455467530,1.76268273,17367.0,17366.0,0.00600132]
[1673455468291,1.76268113,17367.0,17366.0,0.00600132]
[1673455468541,1.76268113,17367.0,17366.0,0.00581861]
[1673455468817,0.6108795,17367.0,17366.0,0.00581861]
[1673455469077,2.41938114,17367.0,17366.0,0.00581861]
[1673455469562,2.67840935,17367.0,17366.0,0.00570536]
[1673455470074,2.85116049,17367.0,17366.0,0.00570536]
[1673455470333,3.53367397,17367.0,17366.0,0.00570536]
[1673455470581,4.10947797,17367.0,17366.0,0.00570536]
[1673455470824,4.10947038,17367.0,17366.0,0.00570536]
[1673455471837,3.75726524,17367.0,17366.0,0.00570536]
[1673455472345,4.18898896,17367.0,17366.0,0.00570536]
[1673455472886,3.93026675,17367.0,17366.0,0.00570536]
[1673455474140,4.33306596,17367.0,17366.0,0.00570536]
[1673455475961,4.33296596,17367.0,17366.0,0.00570536]
[1673455478085,3.75716196,17367.0,17366.0,0.00570536]
[1673455479015,4.18889243,17367.0,17366.0,0.00554754]
[1673455479260,3.85839243,17367.0,17366.0,0.00554754]
[1673455479502,3.93026675,17367.0,17366.0,0.00554754]
[1673455479747,4.50607075,17367.0,17366.0,0.00554754]
[1673455480277,4.11184041,17367.0,17366.0,0.00554754]
[1673455480519,3.75723111,17367.0,17366.0,0.00554754]
[1673455481578,4.11140704,17367.0,17366.0,0.00554754]
[1673455481872,4.68721104,17367.0,17366.0,0.00554754]
[1673455482099,4.11140704,17367.0,17366.0,0.00554754]
[1673455482635,3.93018331,17367.0,17366.0,0.00554754]
[1673455483061,4.11141605,17367.0,17366.0,0.00554754]
[1673455483574,3.94661605,17367.0,17366.0,0.00554754]
[1673455484314,3.59244911,17367.0,17366.0,0.00554754]
[1673455489407,3.76538331,17367.0,17366.0,0.00554754]
[1673455489649,3.94688235,17367.0,17366.0,0.00554754]
[1673455490165,3.946883,17367.0,17366.0,0.00554754]
[1673455491190,3.76538331,17367.0,17366.0,0.00554754]
[1673455492194,3.10843266,17367.0,17366.0,0.00554754]
[1673455493075,3.5924742,17367.0,17366.0,0.00554754]
[1673455493232,3.10843266,17367.0,17366.0,0.00554754]
[1673455493710,3.5924742,17367.0,17366.0,0.00554754]
[1673455494219,3.76538331,17367.0,17366.0,0.00554754]
[1673455494679,3.94630138,17367.0,17366.0,0.00554754]
[1673455498720,3.94630138,17367.0,17366.0,0.00554754]
[1673455499788,3.60091618,17367.0,17366.0,0.00554754]
[1673455501900,3.59901418,17367.0,17366.0,0.00554754]
[1673455502421,3.16728371,17367.0,17366.0,0.00554754]
[1673455502928,3.74308771,17367.0,17366.0,0.00554754]
[1673455503459,5.98909233,17367.0,17366.0,0.00554754]
[1673455503708,4.26110226,17367.0,17366.0,0.00554754]
[1673455504495,6.36673146,17367.0,17366.0,0.00554754]
[1673455505274,6.36673146,17367.0,17366.0,0.00499279]
[1673455505275,6.76216987,17367.0,17366.0,0.00499279]
[1673455506041,7.34329742,17367.0,17366.0,0.00499279]
[1673455506306,6.76216987,17367.0,17366.0,0.00499279]
[1673455507841,7.64329742,17367.0,17366.0,0.00499279]
[1673455508084,7.64529742,17367.0,17366.0,0.00499279]
[1673455508346,7.06416987,17367.0,17366.0,0.00499279]
[1673455508597,6.76416987,17367.0,17366.0,0.00499279]
[1673455508849,7.06416987,17367.0,17366.0,0.00499279]
[1673455510458,7.40142856,17367.0,17366.0,0.00499279]
[1673455510722,7.98255611,17367.0,17366.0,0.00307367]
[1673455510981,7.51705611,17367.0,17366.0,0.00307367]
[1673455511237,7.23592856,17367.0,17366.0,0.00307367]
[1673455511472,7.23592856,17367.0,17362.0,0.62403172]
[1673455511766,0.60361074,17363.0,17362.0,0.62403172]
[1673455512022,3.62903021,17363.0,17362.0,0.00015]
[1673455512281,6.01568928,17363.0,17362.0,0.00015]
[1673455512595,8.01568928,17363.0,17362.0,0.00015]
[1673455512869,0.3,17362.0,17360.0,0.63562043]
[1673455513118,1.19411865,17362.0,17360.0,0.63562043]
[1673455513372,0.47239922,17362.0,17360.0,0.63562043]
[1673455513901,0.3,17362.0,17360.0,0.63562043]
[1673455514388,0.017,17362.0,17360.0,0.63562043]
[1673455514395,0.017,17362.0,17361.0,0.66194614]
[1673455514637,0.60743566,17362.0,17361.0,0.66194614]